fUST/lending_fUST_20260418
["ID","MTS","AMOUNT","RATE_DAILY","PERIOD"]
[420729237,1776500331855,1021.67160307,0.00023475,120]
[420729238,1776500332239,1021.67160307,0.00023475,120]
[420729239,1776500332698,1021.67160307,0.00023475,120]
[420729240,1776500332874,1021.67160307,0.00023475,120]
[420729241,1776500333172,1021.67160307,0.00023475,120]
[420729242,1776500333481,1021.67160307,0.00023475,120]
[420729243,1776500333783,1021.67160307,0.00023475,120]
[420729245,1776500384928,159.0,0.00023475,120]
[420729246,1776500386271,159.0,0.00024475,120]
[420729247,1776500404983,183.0,0.00022907,120]
[420729248,1776500477318,195.0,0.00023475,120]
[420729249,1776500478488,195.0,0.00024475,120]
[420729250,1776500533832,158.0,0.00023475,120]
[420729251,1776500535125,158.0,0.00024475,120]
[420729296,1776501032617,-4471.49645431,5.279e-05,2]
[420729298,1776501032630,-528.50354569,5.279e-05,2]
[420729300,1776501032640,-1600.0,5.332e-05,2]
[420729302,1776501032650,-326.73331628,5.413e-05,2]
[420729303,1776501032660,-499.99999999,5.84e-05,2]
[420729305,1776501032670,-500.0,6.148e-05,2]
[420729307,1776501032680,-325.2847064,6.239e-05,2]
[420729309,1776501032689,-500.0,6.471e-05,2]
[420729311,1776501032699,-300.0,6.473e-05,2]
[420729313,1776501032710,-152.79239316,6.474e-05,2]
[420729314,1776501032720,-2150.738,6.474e-05,2]
[420729316,1776501032730,-2916.92448787,6.5e-05,2]
[420729319,1776501039007,-12238.40976776,6.5e-05,2]
[420729320,1776501039017,-2301.7472748,6.711e-05,2]
[420729321,1776501039026,-773.5090728,6.711e-05,2]
[420729322,1776501039036,-8223.74311898,6.745e-05,2]
[420729323,1776501039045,-500.0,6.812e-05,2]
[420729324,1776501039055,-181.717,6.812e-05,2]
[420729325,1776501039064,-500.0,6.844e-05,2]
[420729326,1776501039073,-500.0,6.844e-05,2]
[420729327,1776501039083,-500.0,6.844e-05,2]
[420729328,1776501039092,-500.0,6.844e-05,2]
[420729329,1776501039101,-500.0,6.844e-05,2]
[420729330,1776501039110,-197.27645891,6.844e-05,2]
[420729331,1776501039120,-300.0,6.849e-05,2]
[420729332,1776501039129,-300.0,6.849e-05,2]
[420729333,1776501039138,-300.0,6.849e-05,2]
[420729334,1776501039148,-300.0,6.849e-05,2]
[420729335,1776501039157,-300.0,6.849e-05,2]
[420729336,1776501039167,-300.0,6.849e-05,2]
[420729337,1776501039176,-300.0,6.849e-05,2]
[420729338,1776501039185,-300.0,6.849e-05,2]
[420729339,1776501039194,-300.0,6.849e-05,2]
[420729340,1776501039204,-300.0,6.849e-05,2]
[420729341,1776501039213,-300.0,6.849e-05,2]
[420729342,1776501039222,-300.0,6.849e-05,2]
[420729343,1776501039232,-300.0,6.849e-05,2]
[420729344,1776501039241,-300.0,6.849e-05,2]
[420729345,1776501039251,-300.0,6.849e-05,2]
[420729346,1776501039260,-600.0,6.849e-05,2]
[420729347,1776501039269,-500.0,6.849e-05,2]
[420729348,1776501039278,-952.59171098,6.857e-05,2]
[420729349,1776501039288,-573.07411408,6.858e-05,2]
[420729350,1776501039297,-151.0,6.903e-05,2]
[420729351,1776501039307,-2290.00415988,6.903e-05,2]
[420729352,1776501039317,-311.18800725,6.905e-05,2]
[420729353,1776501039326,-466.38155,6.924e-05,2]
[420729354,1776501039335,-6102.46924349,6.925e-05,2]
[420729355,1776501039344,-151.0,6.944e-05,2]
[420729356,1776501039353,-318.62364996,6.945e-05,2]
[420729357,1776501039363,-1274.49459983,6.945e-05,2]
[420729358,1776501039372,-2867.61284963,6.945e-05,2]
[420729359,1776501039382,-5097.97839934,6.945e-05,2]
[420729360,1776501039391,-4622.20635515,6.945e-05,2]
[420729361,1776501039624,-3335.41930257,6.945e-05,2]
[420729362,1776501039633,-152.0,6.947e-05,7]
[420729363,1776501039643,-678.73086904,6.95e-05,2]
[420729364,1776501039653,-238.38631406,6.95e-05,2]
[420729365,1776501039663,-2714.92347614,6.972e-05,2]
[420729366,1776501039672,-763.8493598,6.997e-05,2]
[420729367,1776501039682,-317.59915399,7e-05,2]
[420729368,1776501039691,-3052.34204174,7.016e-05,2]
[420729369,1776501039701,-1269.12621935,7.019e-05,2]
[420729370,1776501039712,-2230.315306,7.022e-05,2]
[420729371,1776501039721,-200.0,7.1e-05,2]
[420729372,1776501039730,-330.0,7.12e-05,2]
[420729373,1776501039740,-500.0,7.17e-05,2]
[420729374,1776501039749,-466.38155,7.192e-05,2]
[420729375,1776501039759,-150.0,7.194e-05,2]
[420729376,1776501039768,-580.36229095,7.268e-05,2]
[420729377,1776501039778,-385.54531321,7.413e-05,2]
[420729378,1776501039787,-466.38155,7.461e-05,2]
[420729379,1776501039797,-163.0,7.5e-05,2]
[420729380,1776501039806,-500.0,7.529e-05,2]
[420729381,1776501039815,-720.0,7.534e-05,2]
[420729382,1776501039825,-555.0,7.546e-05,2]
[420729383,1776501039835,-184.0,7.546e-05,2]
[420729384,1776501039844,-441.0,7.546e-05,2]
[420729385,1776501039854,-220.0,7.563e-05,2]
[420729386,1776501039863,-220.0,7.563e-05,2]
[420729387,1776501039873,-500.0,7.563e-05,2]
[420729388,1776501039882,-2312.83697232,7.57e-05,2]
[420729389,1776501039892,-17566.37553755,7.6e-05,2]
[420729390,1776501039901,-150.0,7.633e-05,2]
[420729391,1776501039911,-150.0,7.633e-05,2]
[420729392,1776501039921,-209.0,7.642e-05,2]
[420729393,1776501039930,-466.38155,7.73e-05,2]
[420729394,1776501039939,-160.0,7.732e-05,2]
[420729395,1776501039949,-208.2,7.755e-05,2]
[420729396,1776501039958,-500.0,7.905e-05,2]
[420729397,1776501039968,-37008.39537236,8e-05,2]
[420729398,1776501039980,-17246.27715036,8e-05,2]
[420729399,1776501039991,-10101.32747728,8e-05,2]
[420729400,1776501040001,-300.0,8e-05,2]
[420729401,1776501040014,-46502.64841393,8.099e-05,2]
[420729402,1776501040025,-16861.96021824,8.099e-05,2]
[420729403,1776501040151,-3536.23883582,8.099e-05,2]
[420729430,1776501046939,-1146.15456132,7.195e-05,2]
[420729431,1776501046949,-386.90819397,7.268e-05,2]
[420729432,1776501046959,-919.87412933,8.099e-05,2]
[420729433,1776501046996,-57400.91493539,8.099e-05,2]
[420729438,1776501047455,-896.75205161,8.099e-05,2]
[420729439,1776501047467,-785.90876817,8.099e-05,2]
[420729440,1776501047478,-7107.2208789,8.099e-05,2]
[420729461,1776501048986,-2642.89995446,8.099e-05,2]
[420729464,1776501368663,157.0,0.00023454,120]
[420729465,1776501369958,157.0,0.00024454,120]
[420729466,1776501407468,158.0,0.00023454,120]
[420729467,1776501408769,158.0,0.00024454,120]
[420729468,1776501486787,159.0,0.00023454,120]
[420729469,1776501488076,159.0,0.00024454,120]
[420729470,1776501561552,176.0,0.00023454,120]
[420729471,1776501563137,176.0,0.00024454,120]
[420729472,1776501620766,158.0,0.00023454,120]
[420729473,1776501622543,158.0,0.00024454,120]
[420729484,1776502231865,-631.87264066,5.872e-05,2]
[420729608,1776502238519,-2831.78523744,5.872e-05,2]
[420729646,1776502246336,-1505.66139505,5.872e-05,2]
[420729648,1776502246345,-504.0,5.872e-05,2]
[420729650,1776502246355,-2592.67121273,5.931e-05,2]
[420729654,1776502246390,-2052.03307428,5.931e-05,2]
[420729656,1776502246399,-317.28345047,5.992e-05,2]
[420729658,1776502246409,-300.0,6.052e-05,2]
[420729660,1776502246418,-335.739076,6.239e-05,2]
[420729662,1776502246429,-830.79647468,6.289e-05,2]
[420729664,1776502246439,-1612.90317942,6.389e-05,2]
[420729666,1776502246450,-373.62877523,6.5e-05,2]
[420729668,1776502246459,-803.56984977,6.5e-05,2]
[420729670,1776502246469,-730.9731847,6.5e-05,2]
[420729672,1776502246479,-300.05390183,6.5e-05,2]
[420729674,1776502246488,-21911.42115189,6.5e-05,2]
[420729676,1776502246498,-335.739076,6.502e-05,2]
[420729678,1776502246507,-452.99587634,6.575e-05,2]
[420729680,1776502246517,-557.35028963,6.6e-05,2]
[420729682,1776502246526,-1197.83624152,6.6e-05,2]
[420729684,1776502246536,-1329.67317426,6.6e-05,2]
[420729686,1776502246545,-1379.75634136,6.6e-05,2]
[420729688,1776502246555,-2395.00988417,6.624e-05,2]
[420729690,1776502246565,-299.69738432,6.648e-05,2]
[420729692,1776502246574,-353.54748475,6.648e-05,2]
[420729693,1776502246583,-301.13486423,6.648e-05,2]
[420729694,1776502246593,-10350.76520686,6.649e-05,2]
[420729709,1776502246814,-1288.72719031,6.649e-05,2]
[420729782,1776502345718,2185.07763865,0.00024658,120]
[420729784,1776502395348,3000.0,8e-05,30]
[420729785,1776502396004,3000.0,8.01e-05,30]
[420729786,1776502396425,3000.0,8.02e-05,30]
[420729787,1776502396970,3000.0,8.03e-05,30]
[420729788,1776502397635,3000.0,8.04e-05,30]
[420729789,1776502398102,3000.0,8.05e-05,30]
[420729790,1776502398528,5752.61425,8.06e-05,30]
[420729795,1776502453113,157.0,0.00023454,120]
[420729796,1776502454399,157.0,0.00024454,120]
[420729797,1776502485861,158.0,0.00023454,120]
[420729798,1776502487379,158.0,0.00024454,120]
[420729799,1776502519208,34185.0440189,0.00024657,120]
[420729800,1776502560833,159.0,0.00023454,120]
[420729801,1776502562143,159.0,0.00024454,120]
[420729802,1776502630490,158.0,0.00023454,120]
[420729803,1776502632221,158.0,0.00024454,120]
[420729804,1776502683406,159.0,0.00023454,120]
[420729805,1776502684703,159.0,0.00024454,120]
[420729806,1776502896130,2500.0,0.00024658,120]
[420729807,1776503179144,6594.1286928,0.0002,120]
[420729809,1776503359919,10000.0,4.006e-05,2]
[420729824,1776503432161,-658.84368899,4.361e-05,2]
[420729825,1776503432216,-536.72555506,4.361e-05,2]
[420729826,1776503432228,-474.03770406,4.361e-05,2]
[420730098,1776503439865,-3330.39305189,4.361e-05,2]
[420730101,1776503439875,-5000.0,4.405e-05,2]
[420730104,1776503439885,-2994.18820615,4.449e-05,2]
[420730108,1776503439896,-215.4188036,4.494e-05,2]
[420730111,1776503439905,-300.0,4.945e-05,2]
[420730113,1776503439915,-300.0,4.945e-05,2]
[420730115,1776503439924,-151.0,4.945e-05,2]
[420730117,1776503439934,-300.0,4.945e-05,2]
[420730118,1776503439944,-1200.0,4.945e-05,2]
[420730119,1776503439954,-328.1567388,5.071e-05,2]
[420730120,1776503439963,-1634.8795614,5.359e-05,2]
[420730121,1776503439974,-300.0,5.411e-05,2]
[420730122,1776503439983,-300.0,5.411e-05,2]
[420730123,1776503439993,-300.0,5.411e-05,2]
[420730124,1776503440003,-300.0,5.411e-05,2]
[420730125,1776503440013,-300.0,5.411e-05,2]
[420730126,1776503440022,-300.0,5.411e-05,2]
[420730128,1776503440031,-300.0,5.411e-05,2]
[420730129,1776503440041,-300.0,5.411e-05,2]
[420730130,1776503440051,-300.0,5.411e-05,2]
[420730131,1776503440060,-300.0,5.411e-05,2]
[420730132,1776503440069,-300.0,5.411e-05,2]
[420730133,1776503440079,-300.0,5.411e-05,2]
[420730135,1776503440088,-300.0,5.411e-05,2]
[420730137,1776503440097,-300.0,5.411e-05,2]
[420730139,1776503440107,-300.0,5.411e-05,2]
[420730141,1776503440116,-600.0,5.518e-05,2]
[420730142,1776503440125,-720.0,6.07e-05,2]
[420730143,1776503440135,-181.717,6.131e-05,2]
[420730145,1776503440144,-27161.206508,6.14e-05,2]
[420730204,1776503440718,-3805.47613993,6.14e-05,2]
[420730247,1776503446522,-3749.21162246,6.14e-05,2]
[420730248,1776503446576,-3614.78353102,6.14e-05,2]
[420730251,1776503500974,157.0,0.00023452,120]
[420730252,1776503502299,157.0,0.00024452,120]
[420730253,1776503530036,158.0,0.00023452,120]
[420730254,1776503531541,158.0,0.00024452,120]
[420730255,1776503616886,159.0,0.00023452,120]
[420730256,1776503618235,159.0,0.00024452,120]
[420730257,1776503658899,5118.2628756,0.00024657,120]
[420730258,1776503685842,158.0,0.00023452,120]
[420730259,1776503687155,158.0,0.00024452,120]
[420730260,1776503732900,159.0,0.00023456,120]
[420730261,1776503734219,159.0,0.00024456,120]
[420730280,1776504096009,1947.89427164,0.0002465,120]
[420730281,1776504123959,1947.89427164,0.0002465,120]
[420730282,1776504546509,157.0,0.00023456,120]
[420730283,1776504547817,158.06958846,0.00024456,120]
[420730284,1776504572270,158.0,0.00023456,120]
[420730285,1776504573606,158.0,0.00024456,120]
[420730338,1776504632366,-1331.37290307,4.563e-05,2]
[420730346,1776504632407,-559.62709693,4.563e-05,2]
[420730349,1776504632419,-500.0,4.563e-05,2]
[420730353,1776504632430,-2609.0,4.563e-05,2]
[420730356,1776504632440,-5000.0,4.609e-05,2]
[420730358,1776504632449,-300.0,4.773e-05,2]
[420730360,1776504632459,-326.11333712,4.774e-05,2]
[420730362,1776504632468,-879.4603811,5.044e-05,2]
[420730364,1776504632477,-223.82605,5.5e-05,2]
[420730366,1776504632486,-223.82605,5.732e-05,2]
[420730368,1776504632496,-250.39259956,5.806e-05,2]
[420730370,1776504632505,-1538.94349957,5.84e-05,2]
[420730372,1776504632514,-240.17765221,5.939e-05,2]
[420730374,1776504632523,-500.0,5.939e-05,2]
[420730376,1776504632533,-500.0,5.939e-05,2]
[420730378,1776504632542,-500.0,5.939e-05,2]
[420730380,1776504632552,-500.0,5.939e-05,2]
[420730381,1776504632561,-500.0,5.939e-05,2]
[420730383,1776504632570,-500.0,5.939e-05,2]
[420730385,1776504632579,-500.0,5.939e-05,2]
[420730387,1776504632589,-500.0,5.939e-05,2]
[420730389,1776504632598,-500.0,5.939e-05,2]
[420730391,1776504632608,-466.40480045,5.939e-05,2]
[420730466,1776504633401,159.0,0.00023456,120]
[420730567,1776504634737,159.0,0.00024456,120]
[420730575,1776504638783,-3800.0,4.517e-05,2]
[420730576,1776504638792,-33.59519955,5.939e-05,2]
[420730577,1776504638802,-500.0,5.939e-05,2]
[420730578,1776504638814,-500.0,5.939e-05,2]
[420730579,1776504638824,-438.06328758,5.939e-05,2]
[420730580,1776504638835,-500.0,5.939e-05,2]
[420730581,1776504638847,-500.0,5.939e-05,2]
[420730582,1776504638857,-500.0,5.939e-05,2]
[420730583,1776504638866,-500.0,5.939e-05,2]
[420730584,1776504638875,-500.0,5.939e-05,2]
[420730585,1776504638884,-500.0,5.939e-05,2]
[420730586,1776504638893,-500.0,5.939e-05,2]
[420730587,1776504638903,-500.0,5.939e-05,2]
[420730588,1776504638912,-500.0,5.939e-05,2]
[420730589,1776504638922,-500.0,5.939e-05,2]
[420730590,1776504638930,-500.0,5.939e-05,2]
[420730591,1776504638939,-500.0,5.939e-05,2]
[420730592,1776504638948,-500.0,5.939e-05,2]
[420730593,1776504638957,-500.0,5.939e-05,2]
[420730594,1776504638966,-500.0,5.939e-05,2]
[420730595,1776504638975,-500.0,5.939e-05,2]
[420730596,1776504638984,-500.0,5.939e-05,2]
[420730597,1776504638993,-500.0,5.939e-05,2]
[420730598,1776504639003,-620.71094257,5.939e-05,2]
[420730599,1776504639012,-500.0,5.939e-05,2]
[420730600,1776504639022,-500.0,5.939e-05,2]
[420730601,1776504639031,-500.0,5.939e-05,2]
[420730602,1776504639040,-500.0,5.939e-05,2]
[420730603,1776504639049,-500.0,5.939e-05,2]
[420730604,1776504639058,-500.0,5.939e-05,2]
[420730605,1776504639067,-168.314073,5.939e-05,2]
[420730606,1776504639079,-331.685927,5.939e-05,2]
[420730607,1776504639087,-3252.05284353,5.94e-05,2]
[420730608,1776504639099,-26693.92708985,5.94e-05,2]
[420730618,1776504640784,-5937.25,5.94e-05,2]
[420730635,1776504643571,-1779.0,5.94e-05,2]
[420730636,1776504643632,-2907.59361649,5.94e-05,2]
[420730647,1776504646647,-26914.79299666,5.94e-05,2]
[420730648,1776504646656,-223.82605,5.963e-05,2]
[420730649,1776504646666,-23151.76056304,6.14e-05,2]
[420730650,1776504646702,-3846.18342021,6.14e-05,2]
[420730651,1776504646811,-3522.49821534,6.14e-05,2]
[420730652,1776504646821,-223.82605,6.195e-05,2]
[420730653,1776504646831,-427.69903658,6.3e-05,2]
[420730654,1776504646842,-869.34040914,6.3e-05,2]
[420730655,1776504646852,-959.40899977,6.3e-05,2]
[420730656,1776504646862,-223.82605,6.426e-05,2]
[420730657,1776504646871,-500.0,6.496e-05,2]
[420730658,1776504646880,-177.57,6.52e-05,6]
[420730659,1776504646891,-600.0,6.53e-05,2]
[420730660,1776504646902,-339.27,6.614e-05,2]
[420730661,1776504646913,-632.80888408,6.649e-05,2]
[420730662,1776504646923,-1000.0,6.649e-05,2]
[420730663,1776504646933,-1000.0,6.649e-05,2]
[420730664,1776504646942,-1000.0,6.649e-05,2]
[420730665,1776504646952,-1000.0,6.649e-05,2]
[420730666,1776504646961,-1000.56431666,6.649e-05,2]
[420730667,1776504646971,-180.60529374,6.649e-05,2]
[420730668,1776504646980,-151.0,6.649e-05,2]
[420730669,1776504646989,-151.0,6.649e-05,2]
[420730670,1776504646998,-151.0,6.649e-05,2]
[420730671,1776504647007,-151.0,6.649e-05,2]
[420730672,1776504647016,-151.0,6.649e-05,2]
[420730673,1776504647025,-151.0,6.649e-05,2]
[420730674,1776504647034,-152.49059053,6.649e-05,2]
[420730675,1776504647043,-223.82605,6.658e-05,2]
[420730676,1776504647053,-346.9094245,6.774e-05,2]
[420730677,1776504696860,158.0,0.00023456,120]
[420730678,1776504698192,158.0,0.00024456,120]
[420730679,1776504740544,159.0,0.00023456,120]
[420730680,1776504741869,159.0,0.00024456,120]
[420730681,1776505184914,167.2660005,2.845e-05,2]
[420730682,1776505586086,158.89181322,0.00023467,120]
[420730683,1776505642978,159.0,0.00023462,120]
[420730684,1776505644272,159.743589,0.00024462,120]
[420730685,1776505701379,158.0,0.00023462,120]
[420730686,1776505702680,158.0,0.00024462,120]
[420730687,1776505715044,311.61801817,4.006e-05,2]
[420730688,1776505740773,159.0,0.00023462,120]
[420730689,1776505741847,159.0,0.00024462,120]
[420730692,1776505832551,-5000.0,5.367e-05,2]
[420730693,1776505832561,-500.0,5.511e-05,2]
[420730694,1776505832571,-317.08222032,5.511e-05,2]
[420730695,1776505832581,-299.98253537,5.7e-05,2]
[420730696,1776505832590,-405.61586154,6.838e-05,2]
[420730697,1776505832600,-184.0,7.004e-05,2]
[420730698,1776505832610,-441.0,7.004e-05,2]
[420730699,1776505832619,-196.4268325,7.033e-05,2]
[420730700,1776505832629,-428.62868899,7.047e-05,2]
[420730701,1776505832639,-165.04577963,7.156e-05,2]
[420730702,1776505832648,-500.0,7.18e-05,2]
[420730703,1776505832658,-180.12546029,7.34e-05,2]
[420730704,1776505832667,-800.0,7.341e-05,2]
[420730705,1776505832677,-800.0,7.345e-05,2]
[420730706,1776505832687,-800.0,7.351e-05,2]
[420730707,1776505832697,-2150.738,7.399e-05,2]
[420730708,1776505832706,-2792.71791501,7.437e-05,2]
[420730709,1776505832716,-800.0,7.454e-05,2]
[420730710,1776505832726,-800.0,7.466e-05,2]
[420730711,1776505832735,-429.1142117,7.5e-05,2]
[420730712,1776505832745,-993.94467468,7.5e-05,2]
[420730713,1776505832755,-872.73233274,7.5e-05,2]
[420730714,1776505832764,-223.94740348,7.5e-05,2]
[420730715,1776505832774,-374.15701998,7.511e-05,2]
[420730716,1776505832784,-800.0,7.524e-05,2]
[420730717,1776505832794,-1643.14063402,7.535e-05,2]
[420730718,1776505832804,-8415.25392059,7.535e-05,2]
[420730737,1776505838940,-6711.45283516,7.535e-05,2]
[420730738,1776505840931,-258.30150867,7.535e-05,2]
[420730756,1776505845031,-101067.42679961,7.535e-05,2]
[420730757,1776505845042,-800.0,7.58e-05,2]
[420730758,1776505845052,-800.0,7.582e-05,2]
[420730759,1776505845062,-500.0,7.613e-05,2]
[420730760,1776505845072,-500.0,7.613e-05,2]
[420730761,1776505845083,-800.0,7.634e-05,2]
[420730762,1776505845093,-800.0,7.669e-05,2]
[420730763,1776505845105,-800.0,7.675e-05,2]
[420730764,1776505845115,-571.99280546,7.683e-05,2]
[420730765,1776505845125,-160.0,7.735e-05,2]
[420730766,1776505845135,-1712.8002412,7.773e-05,2]
[420730767,1776505845145,-212.04,7.811e-05,2]
[420730768,1776505845155,-224.60546265,7.937e-05,2]
[420730769,1776505845166,-2230.315306,7.947e-05,2]
[420730770,1776505845177,-131127.24559175,8.099e-05,2]
[420730774,1776505847478,-17590.11092146,8.099e-05,2]
[420730775,1776505964577,165.55598906,0.00023478,120]
[420730776,1776505964982,165.55598906,0.00023478,120]
[420730777,1776505965199,261.52478428,0.00015609,120]
[420730778,1776505965273,165.55598906,0.00023478,120]
[420730779,1776505965561,165.55598906,0.00023478,120]
[420730780,1776505965860,165.55598906,0.00023478,120]
[420730781,1776505966188,165.55598906,0.00023478,120]
[420730782,1776505966475,165.55598906,0.00023478,120]
[420730783,1776505966758,165.55598906,0.00023478,120]
[420730784,1776505991949,150.0,8e-05,30]
[420730786,1776506299408,3000.0,0.00024658,120]
[420730787,1776506304070,38640.26,0.00024658,120]
[420730793,1776506481671,-302.52162053,6.922e-05,2]
[420730795,1776506752186,159.0,0.00023455,120]
[420730796,1776506753735,159.0,0.00024455,120]
[420730797,1776506786711,159.0,0.00023455,120]
[420730798,1776506788003,160.10069148,0.00024455,120]
[420730976,1776507047885,-5000.0,6.713e-05,2]
[420730977,1776507047894,-515.0,6.713e-05,2]
[420730978,1776507047904,-307.59818718,6.782e-05,2]
[420730980,1776507047914,-441.0,7.057e-05,2]
[420730982,1776507047923,-184.0,7.057e-05,2]
[420730984,1776507047933,-217.159,7.384e-05,2]
[420730986,1776507047943,-189.137518,7.384e-05,2]
[420730988,1776507047952,-422.29240887,7.4e-05,2]
[420730990,1776507047962,-299.66339028,7.4e-05,2]
[420730991,1776507047971,-300.0,7.412e-05,2]
[420730993,1776507047983,-300.0,7.412e-05,2]
[420730995,1776507047992,-210.0,7.413e-05,2]
[420730997,1776507048002,-500.0,7.413e-05,2]
[420730999,1776507048012,-503.15599088,7.413e-05,2]
[420731001,1776507048020,-254.97938471,7.413e-05,2]
[420731003,1776507048032,-245.02061529,7.413e-05,2]
[420731005,1776507048042,-500.0,7.413e-05,2]
[420731007,1776507048051,-500.0,7.413e-05,2]
[420731009,1776507048060,-500.0,7.413e-05,2]
[420731011,1776507048070,-500.0,7.413e-05,2]
[420731013,1776507048079,-33.78846465,7.43e-05,2]
[420731018,1776507048116,-832.88286071,7.43e-05,2]
[420731025,1776507048174,-1284.06667464,7.43e-05,2]
[420731027,1776507048183,-500.0,7.434e-05,2]
[420731029,1776507048193,-469.55391544,7.434e-05,2]
[420731031,1776507048202,-500.0,7.434e-05,2]
[420731033,1776507048211,-500.0,7.434e-05,2]
[420731034,1776507048220,-574.14218851,7.434e-05,2]
[420731036,1776507048230,-500.0,7.434e-05,2]
[420731038,1776507048240,-500.0,7.434e-05,2]
[420731040,1776507048249,-500.0,7.434e-05,2]
[420731042,1776507048259,-500.0,7.434e-05,2]
[420731044,1776507048268,-97.48722141,7.434e-05,2]
[420731047,1776507048279,-402.51277859,7.434e-05,2]
[420731048,1776507048289,-553.4128832,7.434e-05,2]
[420731050,1776507048298,-43807.87389304,7.435e-05,2]
[420731052,1776507048309,-2292.0,7.435e-05,2]
[420731066,1776507048448,-2585.94242598,7.435e-05,2]
[420731317,1776507300936,53768.5950941,0.00024657,120]
[420731319,1776507776905,159.0,0.00023459,120]
[420731320,1776507778213,159.0,0.00024459,120]
[420731351,1776508231844,-520.58013479,6.549e-05,2]
[420731352,1776508231857,-4479.41986521,6.549e-05,2]
[420731353,1776508231866,-513.0,6.549e-05,2]
[420731354,1776508231877,-801.24063178,6.601e-05,2]
[420731355,1776508231888,-1550.05194041,6.701e-05,2]
[420731356,1776508231898,-305.86739109,6.776e-05,2]
[420731357,1776508231907,-2298.86324904,6.801e-05,2]
[420731358,1776508231917,-455.3770817,6.916e-05,2]
[420731359,1776508231926,-184.0,7.108e-05,2]
[420731361,1776508231935,-441.0,7.108e-05,2]
[420731363,1776508231944,-2685.29506854,7.449e-05,2]
[420731365,1776508231953,-160.0,7.745e-05,2]
[420731366,1776508231962,-224.60546265,7.937e-05,2]
[420731367,1776508231971,-225.096,7.937e-05,2]
[420731368,1776508231981,-2150.738,8.014e-05,2]
[420731369,1776508231989,-621.02167143,8.019e-05,2]
[420731386,1776508238195,-224.60546265,7.937e-05,2]
[420731387,1776508238205,-551.71376877,7.939e-05,2]
[420731388,1776508238216,-249.6807686,8.019e-05,2]
[420731389,1776508238228,-1134.089456,8.019e-05,2]
[420731390,1776508238332,-3932.45810397,8.019e-05,2]
[420731391,1776508238342,-30504.79783591,8.019e-05,2]
[420731392,1776508238354,-9145.65016271,8.019e-05,2]
[420731400,1776508240547,-484.0,8.019e-05,2]
[420731401,1776508240665,-2323.41304284,8.019e-05,2]
[420731597,1776508246349,-1350.01285158,8.019e-05,2]
[420731599,1776508246359,-299.75004326,8.059e-05,2]
[420731600,1776508246369,-2182.44079418,8.099e-05,2]
[420731605,1776508246412,-4972.768791,8.099e-05,2]
[420731611,1776508246475,-23222.66433056,8.099e-05,2]
[420731617,1776508246536,-1431.46,8.099e-05,2]
[420731664,1776508247508,-2160.0,8.099e-05,2]
[420731665,1776508247524,-565.45,8.099e-05,2]
[420731666,1776508247536,-443.0,8.099e-05,2]
[420731667,1776508247625,-4200.0,8.099e-05,2]
[420731691,1776508420380,1249.186,0.00024658,120]
[420731692,1776508468978,2000.0,0.00024658,120]
[420731694,1776508481959,300.08405527,0.000246,120]
[420731695,1776508773601,-800.0,6.916e-05,2]
[420731696,1776508773623,-200.0,6.916e-05,2]
[420731697,1776508774545,-318.0,6.916e-05,2]
[420731698,1776508774568,-682.0,6.962e-05,2]
[420731699,1776508775373,-118.0,6.962e-05,2]
[420731700,1776508787341,-184.0,7.176e-05,2]
[420731701,1776508787363,-441.0,7.176e-05,2]
[420731702,1776508787386,-151.0,7.727e-05,2]
[420731703,1776508787410,-106.0,7.748e-05,2]
[420731704,1776508804343,-54.0,7.748e-05,2]
[420731705,1776508804365,-500.0,7.893e-05,2]
[420731706,1776508804387,-446.0,7.893e-05,2]
[420731707,1776508806002,-54.0,7.893e-05,2]
[420731708,1776508806025,-500.0,7.893e-05,2]
[420731709,1776508806047,-446.0,7.893e-05,2]
[420731710,1776508806074,-54.0,7.893e-05,2]
[420731711,1776508806096,-500.0,7.893e-05,2]
[420731712,1776508806119,-446.0,7.893e-05,2]
[420731713,1776508806252,-151.5246226,7.719e-05,2]
[420731714,1776508806273,-54.0,7.893e-05,2]
[420731715,1776508806295,-794.4753774,7.914e-05,2]
[420731716,1776508806679,-1000.0,7.914e-05,2]